fUSD/lending_fUSD_20260606
["ID","MTS","AMOUNT","RATE_DAILY","PERIOD"]
[424304057,1780758655000,-286.0175483,0.0002985,2]
[424304058,1780758655000,-2000.0,0.0002985,2]
[424304062,1780758655000,-1000.0,0.0002985,2]
[424304073,1780758655000,-479.20189331,0.00029863,2]
[424304072,1780758655000,-217.87328476,0.00029863,2]
[424304065,1780758655000,-1000.0,0.0002985,2]
[424304064,1780758655000,-1000.0,0.0002985,2]
[424304061,1780758655000,-1000.0,0.0002985,2]
[424304056,1780758655000,-1879.46,0.00029299,7]
[424304091,1780758655000,-568.9796286,0.00029874,2]
[424304100,1780758655000,-200.0,0.00029993,2]
[424304093,1780758655000,-265.88118116,0.00029924,4]
[424304127,1780758655000,-1051.1,0.00030063,30]
[424304125,1780758655000,-1051.1,0.00030037,30]
[424304128,1780758655000,-1000.0,0.00030065,14]
[424304130,1780758655000,-700.0,0.0003007,2]
[424304131,1780758655000,-1051.1,0.00030075,30]
[424304134,1780758655000,-4241.46,0.000301,7]
[424304133,1780758655000,-1933.06,0.000301,7]
[424304132,1780758655000,-1051.1,0.00030088,30]
[424304135,1780758655000,-1366.0,0.000301,7]
[424304137,1780758655000,-1051.1,0.000301,30]
[424304136,1780758655000,-400.62857835,0.000301,30]
[424304139,1780758655000,-1181.21109745,0.00030116,2]
[424304148,1780758655000,-474.45459025,0.00030116,2]
[424304147,1780758655000,-190.06906936,0.00030116,2]
[424304141,1780758655000,-212.97843626,0.00030116,2]
[424304150,1780758655000,-269.63074034,0.00030116,2]
[424304138,1780758655000,-1051.1,0.00030113,30]
[424304149,1780758655000,-648.41053334,0.00030116,2]
[424304140,1780758655000,-1266.73383363,0.00030116,2]
[424304145,1780758655000,-1110.38168861,0.00030116,2]
[424304142,1780758655000,-243.4399674,0.00030116,2]
[424304143,1780758655000,-497.92501796,0.00030116,2]
[424304144,1780758655000,-244.75344391,0.00030116,2]
[424304129,1780758655000,-400.0,0.0003007,2]
[424304121,1780758655000,-179.97120458,0.00030014,2]
[424304126,1780758655000,-1051.1,0.0003005,30]
[424304120,1780758655000,-1051.1,0.00030013,30]
[424304097,1780758655000,-1910.18787185,0.00029993,2]
[424304104,1780758655000,-200.0,0.00029993,2]
[424304146,1780758655000,-189.43346073,0.00030116,2]
[424304106,1780758655000,-699.87,0.0003,14]
[424304110,1780758655000,-197.2,0.0003,2]
[424304107,1780758655000,-368.98003904,0.0003,30]
[424304112,1780758655000,-200.0,0.0003,2]
[424304115,1780758655000,-1051.1,0.0003,30]
[424304103,1780758655000,-280.03725111,0.00029993,2]
[424304108,1780758655000,-161.0,0.0003,14]
[424304101,1780758655000,-500.0,0.00029993,2]
[424304111,1780758655000,-164.5,0.0003,2]
[424304102,1780758655000,-151.0,0.00029993,2]
[424304105,1780758655000,-280.03725111,0.00029993,2]
[424304109,1780758655000,-200.0,0.0003,2]
[424304118,1780758655000,-200.0,0.0003,2]
[424304116,1780758655000,-162.31190159,0.0003,5]
[424304119,1780758655000,-172.0,0.0003,14]
[424304114,1780758655000,-650.0,0.0003,2]
[424304124,1780758655000,-1051.1,0.00030025,30]
[424304123,1780758655000,-419.0,0.00030025,2]
[424304122,1780758655000,-3642.0,0.00030025,2]
[424304113,1780758655000,-215.80795776,0.0003,30]
[424304117,1780758655000,-1000.0,0.0003,14]
[424304090,1780758655000,-437.22927426,0.00029874,2]
[424304155,1780758657000,-315.0,0.000273,2]
[424304156,1780758657000,-1053.51002611,0.00027397,10]
[424304157,1780758657000,-332.93060017,0.00027397,10]
[424304158,1780758657000,-645.43761001,0.00027397,10]
[424304154,1780758657000,-621.009,0.00014747,2]
[424304153,1780758657000,-357.95948353,0.00013698,2]
[424304152,1780758657000,-54.0765988,0.00013698,2]
[424304151,1780758657000,-445.9234012,0.00013698,2]
[424304160,1780758658000,-651.0,0.0002,2]
[424304161,1780758658000,-651.0,0.00021,2]
[424304162,1780758658000,-156.69569439,0.00023232,2]
[424304163,1780758658000,-5528.68568178,0.00027397,10]
[424304159,1780758658000,-933.0,0.00018338,2]
[424304164,1780758658000,-1683.27198113,0.00027397,10]
[424304166,1780758659000,152.0,0.00029776,120]
[424304165,1780758659000,152.0,7.607e-05,7]
[424304168,1780758683000,152.0,7.608e-05,7]
[424304167,1780758683000,152.0,7.606e-05,7]
[424304169,1780758684000,152.0,7.608e-05,7]
[424304170,1780758685000,152.0,7.608e-05,7]
[424304171,1780758686000,152.0,7.611e-05,7]
[424304172,1780758688000,152.0,0.00029776,120]
[424304173,1780758688000,152.0,0.00029776,120]
[424304175,1780758699000,500.0,0.0003013,120]
[424304174,1780758699000,500.0,0.0003013,120]
[424304176,1780758758000,150.0,0.00015303,120]
[424304177,1780758780000,152.0,7.606e-05,7]
[424304178,1780758781000,152.0,0.00029776,120]
[424304179,1780758866000,250.0,0.00029582,120]
[424304180,1780758867000,250.0,0.00029582,120]
[424304181,1780758868000,218.0,0.00029582,120]
[424304182,1780758885000,152.0,7.614e-05,7]
[424304184,1780758961000,16835.18315803,0.0003013,120]
[424304185,1780758998000,711.32,0.0003013,120]
[424304196,1780759051000,-500.0,6.79e-05,2]
[424304197,1780759051000,-500.0,6.79e-05,2]
[424304194,1780759051000,-500.0,6.79e-05,2]
[424304198,1780759051000,-500.0,6.79e-05,2]
[424304195,1780759051000,-500.0,6.79e-05,2]
[424304193,1780759051000,-500.0,6.79e-05,2]
[424304192,1780759051000,-500.0,6.79e-05,2]
[424304190,1780759051000,-329.819,6.656e-05,2]
[424304189,1780759051000,-5601.264,6.656e-05,2]
[424304187,1780759051000,-250.0,6.655e-05,2]
[424304188,1780759051000,-150.0,6.656e-05,2]
[424304186,1780759051000,-711.0,6.655e-05,2]
[424304191,1780759051000,-300.0,6.7e-05,2]
[424304200,1780759051000,-500.0,6.79e-05,2]
[424304204,1780759051000,-500.0,6.79e-05,2]
[424304202,1780759051000,-500.0,6.79e-05,2]
[424304215,1780759051000,-500.0,6.79e-05,2]
[424304199,1780759051000,-500.0,6.79e-05,2]
[424304214,1780759051000,-500.0,6.79e-05,2]
[424304212,1780759051000,-500.0,6.79e-05,2]
[424304211,1780759051000,-500.0,6.79e-05,2]
[424304208,1780759051000,-500.0,6.79e-05,2]
[424304213,1780759051000,-500.0,6.79e-05,2]
[424304207,1780759051000,-500.0,6.79e-05,2]
[424304210,1780759051000,-500.0,6.79e-05,2]
[424304206,1780759051000,-500.0,6.79e-05,2]
[424304205,1780759051000,-500.0,6.79e-05,2]
[424304201,1780759051000,-500.0,6.79e-05,2]
[424304203,1780759051000,-500.0,6.79e-05,2]
[424304209,1780759051000,-500.0,6.79e-05,2]
[424304225,1780759052000,-500.0,6.79e-05,2]
[424304224,1780759052000,-500.0,6.79e-05,2]
[424304222,1780759052000,-500.0,6.79e-05,2]
[424304220,1780759052000,-500.0,6.79e-05,2]
[424304216,1780759052000,-500.0,6.79e-05,2]
[424304221,1780759052000,-500.0,6.79e-05,2]
[424304218,1780759052000,-500.0,6.79e-05,2]
[424304217,1780759052000,-500.0,6.79e-05,2]
[424304227,1780759052000,-157.917,6.79e-05,2]
[424304219,1780759052000,-500.0,6.79e-05,2]
[424304226,1780759052000,-500.0,6.79e-05,2]
[424304223,1780759052000,-500.0,6.79e-05,2]
[424304229,1780759052000,-500.0,6.79e-05,2]
[424304228,1780759052000,-342.083,6.79e-05,2]
[424304236,1780759052000,-500.0,6.79e-05,2]
[424304239,1780759052000,-644.05581349,6.79e-05,2]
[424304234,1780759052000,-500.0,6.79e-05,2]
[424304235,1780759052000,-500.0,6.79e-05,2]
[424304238,1780759052000,-500.0,6.79e-05,2]
[424304237,1780759052000,-500.0,6.79e-05,2]
[424304232,1780759052000,-500.0,6.79e-05,2]
[424304231,1780759052000,-500.0,6.79e-05,2]
[424304230,1780759052000,-500.0,6.79e-05,2]
[424304233,1780759052000,-500.0,6.79e-05,2]
[424304249,1780759053000,-500.0,6.79e-05,2]
[424304251,1780759053000,-499.99999999,6.79e-05,2]
[424304250,1780759053000,-500.0,6.79e-05,2]
[424304247,1780759053000,-500.0,6.79e-05,2]
[424304246,1780759053000,-500.0,6.79e-05,2]
[424304240,1780759053000,-500.0,6.79e-05,2]
[424304243,1780759053000,-500.0,6.79e-05,2]
[424304245,1780759053000,-500.0,6.79e-05,2]
[424304244,1780759053000,-500.0,6.79e-05,2]
[424304241,1780759053000,-500.0,6.79e-05,2]
[424304252,1780759053000,-500.0,6.791e-05,2]
[424304248,1780759053000,-500.0,6.79e-05,2]
[424304254,1780759053000,-500.0,6.791e-05,2]
[424304242,1780759053000,-500.0,6.79e-05,2]
[424304255,1780759053000,-500.0,6.791e-05,2]
[424304267,1780759053000,-6976.22254738,6.792e-05,2]
[424304266,1780759053000,-500.0,6.792e-05,2]
[424304265,1780759053000,-158.34343351,6.791e-05,2]
[424304263,1780759053000,-193.2988093,6.791e-05,2]
[424304261,1780759053000,-222.44965674,6.791e-05,2]
[424304264,1780759053000,-226.20490502,6.791e-05,2]
[424304260,1780759053000,-500.0,6.791e-05,2]
[424304262,1780759053000,-300.0,6.791e-05,2]
[424304256,1780759053000,-500.0,6.791e-05,2]
[424304253,1780759053000,-437.34183457,6.791e-05,2]
[424304258,1780759053000,-500.0,6.791e-05,2]
[424304259,1780759053000,-500.0,6.791e-05,2]
[424304257,1780759053000,-500.0,6.791e-05,2]
[424304269,1780759054000,-25000.0,6.792e-05,2]
[424304268,1780759054000,-25000.0,6.792e-05,2]
[424304270,1780759070000,152.0,7.608e-05,7]
[424304272,1780759071000,152.0,0.00029773,120]
[424304271,1780759071000,152.0,7.611e-05,7]
[424304277,1780759098000,477.96941164,7.03e-05,7]
[424304276,1780759098000,150.99829452,7.443e-05,7]
[424304275,1780759098000,150.0,7.443e-05,7]
[424304274,1780759098000,477.96941164,6.892e-05,7]
[424304273,1780759098000,150.0,7.03e-05,7]
[424304278,1780759099000,477.96941164,7.237e-05,7]
[424304279,1780759100000,477.96941164,7.443e-05,7]
[424304280,1780759101000,477.96941164,7.719e-05,7]
[424304286,1780759350000,152.0,7.607e-05,7]
[424304288,1780759351000,152.0,7.609e-05,7]
[424304287,1780759351000,152.0,7.607e-05,7]
[424304289,1780759352000,152.0,7.611e-05,7]
[424304290,1780759352000,272.55,0.00030082,120]
[424304291,1780759353000,152.0,0.00028857,120]
[424304293,1780759373000,152.0,0.00028857,120]
[424304292,1780759373000,152.0,7.609e-05,7]
[424304297,1780759568000,152.0,7.609e-05,7]
[424304296,1780759568000,152.0,7.609e-05,7]
[424304298,1780759600000,100.0,6.5e-05,2]
[424304309,1780759700000,-4200.0,6.5e-05,2]
[424304308,1780759700000,-50.0,6.5e-05,2]
[424304311,1780759741000,1000.0,0.00030129,120]
[424304316,1780759747000,-2263.01822493,6.656e-05,2]
[424304314,1780759747000,-4339.80332201,6.6e-05,2]
[424304315,1780759747000,-20.39335598,6.6e-05,2]
[424304312,1780759747000,-200.0,6.452e-05,2]
[424304313,1780759747000,-4139.80332201,6.6e-05,2]
[424304321,1780759772000,-1279.30542009,6.692e-05,2]
[424304318,1780759772000,-2217.99277507,6.656e-05,2]
[424304320,1780759772000,-797.91049135,6.656e-05,2]
[424304322,1780759772000,-472.28468121,6.692e-05,2]
[424304319,1780759772000,-263.855,6.656e-05,2]
[424304323,1780759772000,-500.0,6.699e-05,2]
[424304325,1780759772000,-500.0,6.699e-05,2]
[424304327,1780759772000,-277.70197859,6.699e-05,2]
[424304326,1780759772000,-500.0,6.699e-05,2]
[424304324,1780759772000,-500.0,6.699e-05,2]
[424304331,1780759797000,-2594.53452512,6.7e-05,2]
[424304330,1780759797000,-3835.86822251,6.7e-05,2]
[424304329,1780759797000,-500.0,6.699e-05,2]
[424304328,1780759797000,-369.37647093,6.699e-05,2]
[424304337,1780759831000,-2366.11165329,6.7e-05,2]
[424304339,1780759831000,-531.73649619,6.7e-05,2]
[424304340,1780759831000,-2515.17474727,6.7e-05,2]
[424304338,1780759831000,-856.57435562,6.7e-05,2]
[424304341,1780759831000,-250.0,6.71e-05,2]
[424304342,1780759831000,-150.0,6.72e-05,2]
[424304344,1780759831000,-151.0,6.789e-05,2]
[424304347,1780759831000,-141532.28163896,6.792e-05,2]
[424304343,1780759831000,-151.0,6.789e-05,2]
[424304345,1780759831000,-1101.40459724,6.791e-05,2]
[424304346,1780759831000,-1050968.71358434,6.792e-05,2]
[424304349,1780759831000,-210737.59616447,6.792e-05,2]
[424304348,1780759831000,-200391.70584296,6.792e-05,2]
[424304352,1780759831000,-508.0,6.792e-05,2]
[424304351,1780759831000,-8625.67817353,6.792e-05,2]
[424304350,1780759831000,-1254.41808677,6.792e-05,2]
[424304379,1780759837000,-3468.03597417,6.692e-05,2]
[424304380,1780759837000,-842059.39942105,6.692e-05,2]
[424304382,1780759837000,-39946.91234406,6.692e-05,2]
[424304383,1780759837000,-2010.03481336,6.692e-05,2]
[424304381,1780759837000,-750059.72850974,6.692e-05,2]
[424304411,1780759838000,-200.0,7.802e-05,2]
[424304413,1780759838000,-166.27,8.219e-05,2]
[424304414,1780759838000,-164.44385732,8.493e-05,2]
[424304416,1780759838000,-41223.4335851,9.04e-05,2]
[424304440,1780759838000,-500.0,0.00010274,2]
[424304417,1780759838000,-2481.20853049,9.09e-05,2]
[424304420,1780759838000,-5343.84964701,9.733e-05,2]
[424304419,1780759838000,-1933.01,9.67e-05,2]
[424304418,1780759838000,-2000.0,9.247e-05,2]
[424304421,1780759838000,-71491.9750156,9.735e-05,2]
[424304415,1780759838000,-250.0,8.852e-05,2]
[424304422,1780759838000,-205.0,9.8e-05,2]
[424304424,1780759838000,-1955.43910252,0.0001,2]
[424304438,1780759838000,-893.08698613,0.00010126,2]
[424304427,1780759838000,-2769.40071782,0.0001,2]
[424304429,1780759838000,-7272.34294282,0.0001,2]
[424304433,1780759838000,-1072.81229077,0.0001,2]
[424304431,1780759838000,-1072.81229077,0.0001,2]
[424304437,1780759838000,-198.71452064,0.00010123,2]
[424304432,1780759838000,-1072.81229077,0.0001,2]
[424304430,1780759838000,-500.0,0.0001,2]
[424304434,1780759838000,-4000.0,0.00010027,2]
[424304436,1780759838000,-192.86997593,0.00010123,2]
[424304435,1780759838000,-263.05797644,0.000101,2]
[424304423,1780759838000,-684.72880467,9.919e-05,2]
[424304406,1780759838000,-4200.0,7e-05,2]
[424304397,1780759838000,-21200.0,6.9e-05,2]
[424304410,1780759838000,-296.6,7.781e-05,2]
[424304441,1780759838000,-4000.0,0.00010278,2]
[424304384,1780759838000,-862455.88893762,6.692e-05,2]
[424304385,1780759838000,-1932329.83985747,6.792e-05,2]
[424304387,1780759838000,-23564.7263475,6.792e-05,2]
[424304386,1780759838000,-71491.9750156,6.792e-05,2]
[424304389,1780759838000,-2592.95583544,6.792e-05,2]
[424304388,1780759838000,-305.73559453,6.792e-05,2]
[424304390,1780759838000,-17000.0,6.8e-05,2]
[424304391,1780759838000,-1000.0,6.891e-05,2]
[424304402,1780759838000,-9999.99,6.9e-05,2]
[424304393,1780759838000,-9999.99,6.897e-05,2]
[424304392,1780759838000,-215.80795776,6.897e-05,2]
[424304396,1780759838000,-299.99,6.897e-05,2]
[424304395,1780759838000,-368.14,6.897e-05,2]
[424304394,1780759838000,-9999.99,6.897e-05,2]
[424304401,1780759838000,-9999.99,6.9e-05,2]
[424304399,1780759838000,-24999.99,6.9e-05,2]
[424304400,1780759838000,-4999.99,6.9e-05,2]
[424304398,1780759838000,-19999.99,6.9e-05,2]
[424304404,1780759838000,-160.0,6.995e-05,2]
[424304403,1780759838000,-150.99,6.9e-05,2]
[424304408,1780759838000,-193.0,7.322e-05,2]
[424304412,1780759838000,-2000.0,8.219e-05,2]
[424304405,1780759838000,-489.66,7e-05,2]
[424304407,1780759838000,-250.0,7.15e-05,2]
[424304409,1780759838000,-250.0,7.37e-05,2]
[424304442,1780759838000,-193543.01324119,0.000103,2]
[424304466,1780759838000,-2000.0,0.00011301,2]
[424304443,1780759838000,-298.75,0.00010413,2]
[424304481,1780759838000,-500.0,0.00013698,2]
[424304482,1780759838000,-535.99,0.00013698,2]
[424304474,1780759838000,-15285.94147973,0.00013,5]
[424304473,1780759838000,-1500.0,0.0001296,2]
[424304477,1780759838000,-10000.0,0.00013599,2]
[424304480,1780759838000,-500.0,0.00013698,2]
[424304478,1780759838000,-791297.2492491,0.00013651,2]
[424304479,1780759838000,-5258.0011637,0.00013651,2]
[424304483,1780759838000,-500.0,0.00013698,2]
[424304484,1780759838000,-500.0,0.00013698,2]
[424304485,1780759838000,-500.0,0.00013698,2]
[424304475,1780759838000,-32000.0,0.00013,2]
[424304488,1780759838000,-160.97,0.00013698,2]
[424304490,1780759838000,-500.0,0.00013698,2]
[424304489,1780759838000,-502.26905522,0.00013698,2]
[424304492,1780759838000,-500.0,0.00013698,2]
[424304493,1780759838000,-500.0,0.00013698,2]
[424304491,1780759838000,-500.0,0.00013698,2]
[424304495,1780759838000,-219.23631724,0.00013698,2]
[424304494,1780759838000,-500.0,0.00013698,2]
[424304496,1780759838000,-500.0,0.00013698,2]
[424304498,1780759838000,-500.0,0.00013698,2]
[424304497,1780759838000,-500.0,0.00013698,2]
[424304449,1780759838000,-4000.0,0.00010779,2]
[424304486,1780759838000,-500.0,0.00013698,2]
[424304472,1780759838000,-71491.9750156,0.00012678,2]
[424304487,1780759838000,-500.0,0.00013698,2]
[424304468,1780759838000,-893.08698613,0.00011645,2]
[424304450,1780759838000,-305.73559451,0.00010796,2]
[424304476,1780759838000,-1555.5,0.00013508,2]
[424304448,1780759838000,-158593.54325823,0.000107,2]
[424304446,1780759838000,-641.69144267,0.00010548,2]
[424304444,1780759838000,-4000.0,0.00010529,2]
[424304439,1780759838000,-2000.0,0.00010274,2]
[424304447,1780759838000,-271.70189762,0.000107,2]
[424304452,1780759838000,-150.0,0.00010959,2]
[424304454,1780759838000,-4000.0,0.0001103,2]
[424304453,1780759838000,-150.0,0.00010959,2]
[424304457,1780759838000,-3966.44829665,0.00011099,2]
[424304455,1780759838000,-3966.44829667,0.00011099,2]
[424304456,1780759838000,-3966.44829665,0.00011099,2]
[424304451,1780759838000,-2592.95583543,0.00010796,2]
[424304460,1780759838000,-3966.44829665,0.00011099,2]
[424304467,1780759838000,-192.86997593,0.00011641,2]
[424304470,1780759838000,-272.55,0.00012329,2]
[424304469,1780759838000,-199.5,0.0001172,2]
[424304463,1780759838000,-3966.44829665,0.00011099,2]
[424304465,1780759838000,-150.0,0.00011233,2]
[424304471,1780759838000,-2000.0,0.00012329,2]
[424304462,1780759838000,-3966.44829665,0.00011099,2]
[424304459,1780759838000,-3966.44829665,0.00011099,2]
[424304461,1780759838000,-3966.44829665,0.00011099,2]
[424304458,1780759838000,-3966.44829665,0.00011099,2]
[424304464,1780759838000,-3966.44829665,0.00011099,2]
[424304536,1780759839000,-500.0,0.00013698,2]
[424304540,1780759839000,-500.0,0.00013698,2]
[424304539,1780759839000,-500.0,0.00013698,2]
[424304534,1780759839000,-500.0,0.00013698,2]
[424304537,1780759839000,-500.0,0.00013698,2]
[424304535,1780759839000,-500.0,0.00013698,2]
[424304538,1780759839000,-500.0,0.00013698,2]
[424304543,1780759839000,-500.0,0.00013698,2]
[424304526,1780759839000,-500.0,0.00013698,2]
[424304533,1780759839000,-500.0,0.00013698,2]
[424304541,1780759839000,-500.0,0.00013698,2]
[424304532,1780759839000,-500.0,0.00013698,2]
[424304542,1780759839000,-500.0,0.00013698,2]
[424304567,1780759839000,-500.0,0.00013698,2]
[424304546,1780759839000,-500.0,0.00013698,2]
[424304554,1780759839000,-500.0,0.00013698,2]
[424304547,1780759839000,-500.0,0.00013698,2]
[424304545,1780759839000,-500.0,0.00013698,2]
[424304553,1780759839000,-500.0,0.00013698,2]
[424304555,1780759839000,-500.0,0.00013698,2]
[424304551,1780759839000,-500.0,0.00013698,2]
[424304552,1780759839000,-500.0,0.00013698,2]
[424304550,1780759839000,-500.0,0.00013698,2]
[424304549,1780759839000,-500.0,0.00013698,2]
[424304548,1780759839000,-500.0,0.00013698,2]
[424304566,1780759839000,-500.0,0.00013698,2]
[424304525,1780759839000,-500.0,0.00013698,2]
[424304544,1780759839000,-500.0,0.00013698,2]
[424304527,1780759839000,-500.0,0.00013698,2]
[424304507,1780759839000,-500.0,0.00013698,2]
[424304530,1780759839000,-500.0,0.00013698,2]
[424304556,1780759839000,-500.0,0.00013698,2]
[424304505,1780759839000,-500.0,0.00013698,2]
[424304506,1780759839000,-500.0,0.00013698,2]
[424304504,1780759839000,-500.0,0.00013698,2]
[424304501,1780759839000,-500.0,0.00013698,2]
[424304500,1780759839000,-500.0,0.00013698,2]
[424304499,1780759839000,-500.0,0.00013698,2]
[424304502,1780759839000,-500.0,0.00013698,2]
[424304503,1780759839000,-500.0,0.00013698,2]
[424304508,1780759839000,-500.0,0.00013698,2]
[424304509,1780759839000,-500.0,0.00013698,2]
[424304511,1780759839000,-500.0,0.00013698,2]
[424304510,1780759839000,-500.0,0.00013698,2]
[424304519,1780759839000,-500.0,0.00013698,2]
[424304513,1780759839000,-500.0,0.00013698,2]
[424304515,1780759839000,-500.0,0.00013698,2]
[424304512,1780759839000,-500.0,0.00013698,2]
[424304514,1780759839000,-500.0,0.00013698,2]
[424304517,1780759839000,-500.0,0.00013698,2]
[424304516,1780759839000,-500.0,0.00013698,2]
[424304518,1780759839000,-500.0,0.00013698,2]
[424304521,1780759839000,-500.0,0.00013698,2]
[424304529,1780759839000,-500.0,0.00013698,2]
[424304520,1780759839000,-500.0,0.00013698,2]
[424304528,1780759839000,-500.0,0.00013698,2]
[424304522,1780759839000,-500.0,0.00013698,2]
[424304531,1780759839000,-500.0,0.00013698,2]
[424304523,1780759839000,-500.0,0.00013698,2]
[424304557,1780759839000,-500.0,0.00013698,2]
[424304524,1780759839000,-500.0,0.00013698,2]
[424304559,1780759839000,-500.0,0.00013698,2]
[424304591,1780759839000,-500.0,0.00013698,2]
[424304594,1780759839000,-500.0,0.00013698,2]
[424304596,1780759839000,-500.0,0.00013698,2]
[424304597,1780759839000,-500.0,0.00013698,2]
[424304598,1780759839000,-500.0,0.00013698,2]
[424304606,1780759839000,-500.0,0.00013698,2]
[424304603,1780759839000,-500.0,0.00013698,2]
[424304605,1780759839000,-500.0,0.00013698,2]
[424304599,1780759839000,-500.0,0.00013698,2]
[424304607,1780759839000,-500.0,0.00013698,2]
[424304601,1780759839000,-500.0,0.00013698,2]
[424304600,1780759839000,-500.0,0.00013698,2]
[424304604,1780759839000,-500.0,0.00013698,2]
[424304602,1780759839000,-500.0,0.00013698,2]
[424304609,1780759839000,-500.0,0.00013698,2]
[424304608,1780759839000,-500.0,0.00013698,2]
[424304610,1780759839000,-500.0,0.00013698,2]
[424304615,1780759839000,-200.0,0.00013699,2]
[424304611,1780759839000,-500.0,0.00013698,2]
[424304616,1780759839000,-2000.0,0.00013699,7]
[424304613,1780759839000,-166.66,0.00013699,2]
[424304618,1780759839000,-166.66,0.00013836,2]
[424304612,1780759839000,-500.0,0.00013698,2]
[424304614,1780759839000,-2500.0,0.00013699,2]
[424304617,1780759839000,-1093.96,0.000137,2]
[424304620,1780759839000,-166.66,0.00013973,2]
[424304563,1780759839000,-500.0,0.00013698,2]
[424304587,1780759839000,-500.0,0.00013698,2]
[424304590,1780759839000,-500.0,0.00013698,2]
[424304619,1780759839000,-172.59,0.000139,2]
[424304588,1780759839000,-500.0,0.00013698,2]
[424304561,1780759839000,-500.0,0.00013698,2]
[424304560,1780759839000,-500.0,0.00013698,2]
[424304558,1780759839000,-500.0,0.00013698,2]
[424304564,1780759839000,-500.0,0.00013698,2]
[424304562,1780759839000,-500.0,0.00013698,2]
[424304565,1780759839000,-500.0,0.00013698,2]
[424304569,1780759839000,-500.0,0.00013698,2]
[424304580,1780759839000,-500.0,0.00013698,2]
[424304589,1780759839000,-500.0,0.00013698,2]
[424304572,1780759839000,-500.0,0.00013698,2]
[424304574,1780759839000,-500.0,0.00013698,2]
[424304568,1780759839000,-500.0,0.00013698,2]
[424304571,1780759839000,-500.0,0.00013698,2]
[424304575,1780759839000,-500.0,0.00013698,2]
[424304579,1780759839000,-500.0,0.00013698,2]
[424304576,1780759839000,-500.0,0.00013698,2]
[424304621,1780759839000,-1613.0535,0.00014056,2]
[424304570,1780759839000,-500.0,0.00013698,2]
[424304584,1780759839000,-500.0,0.00013698,2]
[424304581,1780759839000,-500.0,0.00013698,2]
[424304585,1780759839000,-500.0,0.00013698,2]
[424304583,1780759839000,-500.0,0.00013698,2]
[424304586,1780759839000,-500.0,0.00013698,2]
[424304592,1780759839000,-500.0,0.00013698,2]
[424304582,1780759839000,-500.0,0.00013698,2]
[424304578,1780759839000,-500.0,0.00013698,2]
[424304573,1780759839000,-500.0,0.00013698,2]
[424304577,1780759839000,-500.0,0.00013698,2]
[424304593,1780759839000,-500.0,0.00013698,2]
[424304656,1780759840000,-151.0,0.00015,2]
[424304659,1780759840000,-299.732555,0.00015,2]
[424304663,1780759840000,-299.732555,0.00015,2]
[424304660,1780759840000,-299.732555,0.00015,2]
[424304664,1780759840000,-299.732555,0.00015,2]
[424304649,1780759840000,-2080.68023042,0.00015,2]
[424304657,1780759840000,-236.2272307,0.00015,3]
[424304665,1780759840000,-299.732555,0.00015,2]
[424304655,1780759840000,-151.0,0.00015,2]
[424304652,1780759840000,-351.77766535,0.00015,2]
[424304658,1780759840000,-299.732555,0.00015,2]
[424304661,1780759840000,-299.732555,0.00015,2]
[424304679,1780759840000,-333.170844,0.00015068,2]
[424304667,1780759840000,-151.0,0.00015,2]
[424304677,1780759840000,-333.170844,0.00015068,2]
[424304668,1780759840000,-154.061512,0.00015,2]
[424304666,1780759840000,-151.0,0.00015,2]
[424304669,1780759840000,-176.21045775,0.00015,2]
[424304673,1780759840000,-151.0,0.00015,2]
[424304672,1780759840000,-151.0,0.00015,2]